fUST/lending_fUST_20250501
["ID","MTS","AMOUNT","RATE_DAILY","PERIOD"]
[359546022,1746100247359,-400.0,0.00035616,12]
[359546023,1746100247370,-400.0,0.00035616,12]
[359546024,1746100247379,-403.14984915,0.00035616,12]
[359546025,1746100247389,-429.556602,0.00035616,14]
[359546026,1746100247399,-429.556602,0.00035616,14]
[359546027,1746100247408,-400.0,0.00035616,12]
[359546028,1746100247418,-400.0,0.00035616,12]
[359546029,1746100247431,-400.0,0.00035616,12]
[359546030,1746100247441,-199.582154,0.00035616,14]
[359546031,1746100247450,-199.582154,0.00035616,14]
[359546032,1746100247459,-151.0,0.00035616,14]
[359546033,1746100247468,-400.0,0.00035616,12]
[359546034,1746100247478,-400.0,0.00035616,12]
[359546035,1746100247489,-400.0,0.00035616,12]
[359546036,1746100247499,-433.68,0.00035616,12]
[359546037,1746100247509,-400.0,0.00035616,12]
[359546038,1746100247519,-400.0,0.00035616,12]
[359546039,1746100247528,-221.35051402,0.00035616,12]
[359546040,1746100247538,-483.73,0.00035616,12]
[359546041,1746100247546,-150.0,0.00035616,12]
[359546042,1746100247554,-400.0,0.00035616,12]
[359546043,1746100247564,-400.0,0.00035616,12]
[359546044,1746100247574,-400.0,0.00035616,12]
[359546046,1746100247585,-400.0,0.00035616,12]
[359546047,1746100247594,-313.74581958,0.00035616,12]
[359546048,1746100247603,-400.0,0.00035616,12]
[359546049,1746100247612,-167.49061476,0.00035616,12]
[359546050,1746100247623,-202.6311949,0.00035616,12]
[359546051,1746100247633,-400.0,0.00035616,12]
[359546052,1746100247643,-400.0,0.00035616,12]
[359546053,1746100247654,-400.0,0.00035616,12]
[359546054,1746100247664,-488.4,0.00035616,12]
[359546055,1746100247674,-400.0,0.00035616,12]
[359546056,1746100247685,-1003.852628,0.00035616,14]
[359546057,1746100247695,-1003.852628,0.00035616,14]
[359546058,1746100247705,-400.0,0.00035616,12]
[359546059,1746100247717,-400.0,0.00035616,12]
[359546060,1746100247727,-422.31206175,0.00035616,12]
[359546061,1746100247736,-400.0,0.00035616,12]
[359546062,1746100247746,-400.0,0.00035616,12]
[359546063,1746100247756,-400.0,0.00035616,12]
[359546064,1746100247765,-400.0,0.00035616,12]
[359546065,1746100247775,-400.0,0.00035616,12]
[359546066,1746100247785,-400.0,0.00035616,12]
[359546067,1746100247795,-400.0,0.00035616,12]
[359546068,1746100247805,-400.0,0.00035616,12]
[359546069,1746100247814,-400.0,0.00035616,5]
[359546070,1746100247824,-400.0,0.00035616,12]
[359546071,1746100247836,-400.0,0.00035616,12]
[359546072,1746100247846,-400.0,0.00035616,12]
[359546073,1746100247855,-400.0,0.00035616,12]
[359546074,1746100247865,-400.0,0.00035616,12]
[359546075,1746100247876,-400.0,0.00035616,12]
[359546076,1746100247886,-400.0,0.00035616,12]
[359546077,1746100247895,-400.0,0.00035616,12]
[359546078,1746100247905,-400.0,0.00035616,12]
[359546079,1746100247915,-400.0,0.00035616,12]
[359546080,1746100247924,-400.0,0.00035616,12]
[359546081,1746100247935,-400.0,0.00035616,12]
[359546082,1746100247945,-641.28,0.00035616,12]
[359546083,1746100247957,-203.89174384,0.00035616,12]
[359546084,1746100247967,-432.28,0.00035616,12]
[359546085,1746100247977,-400.0,0.00035616,12]
[359546086,1746100247987,-1873.83,0.00035616,12]
[359546087,1746100247997,-400.0,0.00035616,12]
[359546088,1746100248008,-400.0,0.00035616,12]
[359546089,1746100248018,-400.0,0.00035616,12]
[359546090,1746100248029,-400.0,0.00035616,12]
[359546091,1746100248040,-400.0,0.00035616,12]
[359546092,1746100248051,-400.0,0.00035616,12]
[359546093,1746100248062,-400.0,0.00035616,12]
[359546094,1746100248072,-400.0,0.00035616,12]
[359546095,1746100248083,-400.0,0.00035616,12]
[359546096,1746100248094,-400.0,0.00035616,12]
[359546097,1746100248105,-553.2,0.00035616,12]
[359546098,1746100248116,-400.0,0.00035616,12]
[359546099,1746100248126,-400.0,0.00035616,12]
[359546100,1746100248136,-400.0,0.00035616,2]
[359546101,1746100248146,-400.0,0.00035616,12]
[359546102,1746100248156,-400.0,0.00035616,12]
[359546103,1746100248167,-400.0,0.00035616,12]
[359546104,1746100248177,-400.0,0.00035616,12]
[359546105,1746100248187,-400.0,0.00035616,12]
[359546106,1746100248197,-400.0,0.00035616,12]
[359546107,1746100248208,-400.0,0.00035616,12]
[359546108,1746100248218,-400.0,0.00035616,12]
[359546109,1746100248229,-400.0,0.00035616,12]
[359546110,1746100248239,-400.0,0.00035616,12]
[359546111,1746100248249,-400.0,0.00035616,12]
[359546112,1746100248259,-400.0,0.00035616,12]
[359546113,1746100248270,-400.0,0.00035616,12]
[359546114,1746100248279,-400.0,0.00035616,12]
[359546115,1746100248289,-400.0,0.00035616,12]
[359546116,1746100248299,-1081.62,0.00035616,12]
[359546117,1746100248309,-400.0,0.00035616,12]
[359546118,1746100248320,-444.41,0.00035616,12]
[359546119,1746100248331,-231.44414669,0.00035616,12]
[359546120,1746100248342,-1568.03,0.00035616,12]
[359546121,1746100248353,-400.0,0.00035616,12]
[359546122,1746100248364,-192.06232681,0.00035616,12]
[359546123,1746100248375,-400.0,0.00035616,12]
[359546124,1746100248385,-301.64541736,0.00035616,12]
[359546125,1746100248395,-400.0,0.00035616,5]
[359546126,1746100248406,-400.0,0.00035616,12]
[359546127,1746100248416,-400.0,0.00035616,12]
[359546128,1746100248428,-400.0,0.00035616,12]
[359546129,1746100248439,-400.0,0.00035616,12]
[359546130,1746100248450,-400.0,0.00035616,12]
[359546131,1746100248460,-400.0,0.00035616,12]
[359546132,1746100248470,-200.0,0.00035616,12]
[359546133,1746100248480,-400.0,0.00035616,12]
[359546134,1746100248491,-625.38,0.00035616,12]
[359546135,1746100248502,-400.0,0.00035616,12]
[359546136,1746100248512,-400.0,0.00035616,12]
[359546137,1746100248523,-400.0,0.00035616,12]
[359546138,1746100248534,-400.0,0.00035616,12]
[359546139,1746100248545,-400.0,0.00035616,12]
[359546140,1746100248555,-400.0,0.00035616,12]
[359546141,1746100248565,-400.0,0.00035616,12]
[359546142,1746100248575,-400.0,0.00035616,12]
[359546143,1746100248586,-400.0,0.00035616,12]
[359546144,1746100248597,-400.0,0.00035616,12]
[359546145,1746100248607,-742.02,0.00035616,12]
[359546146,1746100248618,-400.0,0.00035616,12]
[359546147,1746100248628,-356.07158859,0.00035616,12]
[359546148,1746100248639,-400.0,0.00035616,12]
[359546149,1746100248650,-400.0,0.00035616,12]
[359546150,1746100248660,-935.84,0.00035616,12]
[359546151,1746100248671,-966.08,0.00035616,12]
[359546152,1746100248682,-1548.26,0.00035616,12]
[359546153,1746100248693,-400.0,0.00035616,12]
[359546154,1746100248703,-400.0,0.00035616,12]
[359546155,1746100248712,-400.0,0.00035616,12]
[359546156,1746100248722,-400.0,0.00035616,12]
[359546157,1746100248732,-400.0,0.00035616,12]
[359546158,1746100248743,-400.0,0.00035616,12]
[359546159,1746100248753,-400.0,0.00035616,12]
[359546160,1746100248763,-400.0,0.00035616,12]
[359546161,1746100248773,-400.0,0.00035616,12]
[359546162,1746100248784,-400.0,0.00035616,12]
[359546163,1746100248795,-400.0,0.00035616,12]
[359546164,1746100248805,-400.0,0.00035616,12]
[359546165,1746100248817,-400.0,0.00035616,12]
[359546166,1746100248828,-400.0,0.00035616,12]
[359546167,1746100248839,-827.13,0.00035616,12]
[359546168,1746100248850,-400.0,0.00035616,12]
[359546169,1746100248860,-400.0,0.00035616,12]
[359546170,1746100248870,-400.0,0.00035616,12]
[359546171,1746100248882,-758.18,0.00035616,12]
[359546172,1746100248892,-400.0,0.00035616,12]
[359546173,1746100248904,-623.28,0.00035616,12]
[359546174,1746100248914,-400.0,0.00035616,12]
[359546175,1746100248924,-400.0,0.00035616,12]
[359546176,1746100248934,-400.0,0.00035616,12]
[359546177,1746100248944,-400.0,0.00035616,12]
[359546178,1746100248954,-801.74,0.00035616,12]
[359546179,1746100248965,-400.0,0.00035616,12]
[359546180,1746100248980,-400.0,0.00035616,12]
[359546181,1746100248992,-400.0,0.00035616,12]
[359546182,1746100249002,-1316.48,0.00035616,12]
[359546183,1746100249012,-400.0,0.00035616,12]
[359546184,1746100249023,-400.0,0.00035616,12]
[359546185,1746100249033,-812.74,0.00035616,12]
[359546186,1746100249044,-502.3562731,0.00035616,7]
[359546187,1746100249054,-400.0,0.00035616,12]
[359546188,1746100249065,-400.0,0.00035616,12]
[359546189,1746100249075,-618.18,0.00035616,12]
[359546190,1746100249088,-400.0,0.00035616,12]
[359546191,1746100249100,-502.98949656,0.00035616,12]
[359546192,1746100249111,-400.0,0.00035616,12]
[359546193,1746100249122,-400.0,0.00035616,12]
[359546194,1746100249133,-346.07068632,0.00035616,12]
[359546195,1746100249145,-400.0,0.00035616,12]
[359546196,1746100249155,-400.0,0.00035616,12]
[359546197,1746100249165,-169.23068128,0.00035616,12]
[359546198,1746100249175,-400.0,0.00035616,12]
[359546199,1746100249185,-302.54110127,0.00035616,12]
[359546200,1746100249197,-400.0,0.00035616,12]
[359546201,1746100249207,-511.87,0.00035616,12]
[359546202,1746100249218,-400.0,0.00035616,12]
[359546203,1746100249229,-400.0,0.00035616,12]
[359546204,1746100249239,-400.0,0.00035616,12]
[359546205,1746100249249,-208.21437358,0.00035616,12]
[359546206,1746100249259,-400.0,0.00035616,12]
[359546207,1746100249270,-400.0,0.00035616,12]
[359546208,1746100249282,-698.99,0.00035616,12]
[359546209,1746100249292,-400.0,0.00035616,12]
[359546210,1746100249303,-400.0,0.00035616,12]
[359546211,1746100249313,-400.0,0.00035616,12]
[359546212,1746100249574,-400.0,0.00035616,12]
[359546213,1746100249586,-400.0,0.00035616,12]
[359546214,1746100249596,-400.0,0.00035616,12]
[359546215,1746100249606,-491.49,0.00035616,12]
[359546216,1746100249616,-400.0,0.00035616,12]
[359546217,1746100249626,-261.87818616,0.00035616,12]
[359546218,1746100249636,-400.0,0.00035616,12]
[359546219,1746100249647,-400.0,0.00035616,12]
[359546220,1746100249658,-865.58,0.00035616,12]
[359546221,1746100249668,-400.0,0.00035616,12]
[359546222,1746100249678,-446.66291052,0.00035616,12]
[359546223,1746100249688,-514.47396686,0.00035616,12]
[359546224,1746100249698,-400.0,0.00035616,12]
[359546225,1746100249708,-400.0,0.00035616,12]
[359546226,1746100249718,-400.0,0.00035616,12]
[359546227,1746100249728,-400.0,0.00035616,12]
[359546228,1746100249738,-405.90429032,0.00035616,12]
[359546229,1746100249748,-504.41294365,0.00035616,12]
[359546230,1746100249758,-525.58,0.00035616,12]
[359546231,1746100249768,-400.0,0.00035616,12]
[359546232,1746100249778,-400.0,0.00035616,12]
[359546233,1746100249787,-400.0,0.00035616,12]
[359546234,1746100249797,-400.0,0.00035616,12]
[359546235,1746100249807,-400.0,0.00035616,12]
[359546236,1746100249817,-400.0,0.00035616,12]
[359546237,1746100249827,-400.0,0.00035616,12]
[359546238,1746100249838,-578.03,0.00035616,12]
[359546239,1746100249848,-457.08,0.00035616,12]
[359546240,1746100249858,-400.0,0.00035616,12]
[359546241,1746100249868,-511.73342474,0.00035616,12]
[359546242,1746100249877,-400.0,0.00035616,12]
[359546243,1746100249888,-400.0,0.00035616,12]
[359546244,1746100249898,-400.0,0.00035616,12]
[359546245,1746100249910,-400.0,0.00035616,12]
[359546246,1746100249921,-400.0,0.00035616,12]
[359546247,1746100249930,-308.13070881,0.00035616,12]
[359546248,1746100249940,-400.0,0.00035616,12]
[359546249,1746100249951,-400.0,0.00035616,12]
[359546250,1746100249962,-400.0,0.00035616,12]
[359546251,1746100249972,-400.0,0.00035616,12]
[359546252,1746100249981,-400.0,0.00035616,12]
[359546253,1746100249991,-500.0,0.00035616,12]
[359546254,1746100250001,-400.0,0.00035616,12]
[359546255,1746100250011,-411.56,0.00035616,12]
[359546256,1746100250022,-400.0,0.00035616,12]
[359546257,1746100250033,-213.23752237,0.00035616,12]
[359546258,1746100250046,-508.90703285,0.00035616,12]
[359546259,1746100250058,-400.0,0.00035616,2]
[359546260,1746100250068,-400.0,0.00035616,12]
[359546261,1746100250079,-400.0,0.00035616,12]
[359546262,1746100250090,-400.0,0.00035616,12]
[359546263,1746100250100,-400.0,0.00035616,12]
[359546264,1746100250111,-308.24158091,0.00035616,12]
[359546265,1746100250121,-400.0,0.00035616,12]
[359546266,1746100250131,-400.0,0.00035616,12]
[359546267,1746100250142,-400.0,0.00035616,12]
[359546268,1746100250153,-400.0,0.00035616,12]
[359546269,1746100250163,-400.0,0.00035616,12]
[359546270,1746100250173,-400.0,0.00035616,12]
[359546271,1746100250183,-400.0,0.00035616,12]
[359546272,1746100250193,-400.0,0.00035616,12]
[359546273,1746100250203,-400.0,0.00035616,12]
[359546274,1746100250213,-200.00152442,0.00035616,12]
[359546275,1746100250223,-400.0,0.00035616,12]
[359546276,1746100250233,-604.5,0.00035616,12]
[359546277,1746100250243,-233.3275169,0.00035616,12]
[359546278,1746100250254,-400.0,0.00035616,12]
[359546279,1746100250264,-664.69,0.00035616,12]
[359546280,1746100250275,-400.0,0.00035616,12]
[359546281,1746100250284,-1082.42,0.00035616,12]
[359546282,1746100250294,-4552.41,0.00035616,12]
[359546283,1746100250304,-400.0,0.00035616,12]
[359546284,1746100250314,-400.0,0.00035616,12]
[359546285,1746100250325,-453.71,0.00035616,12]
[359546286,1746100250335,-400.0,0.00035616,12]
[359546287,1746100250344,-400.0,0.00035616,12]
[359546288,1746100250355,-400.0,0.00035616,12]
[359546289,1746100250365,-400.0,0.00035616,12]
[359546290,1746100250376,-1160.92,0.00035616,12]
[359546291,1746100250386,-400.0,0.00035616,12]
[359546292,1746100250395,-400.0,0.00035616,12]
[359546293,1746100250405,-400.0,0.00035616,12]
[359546294,1746100250415,-400.0,0.00035616,12]
[359546295,1746100250426,-876.34,0.00035616,12]
[359546296,1746100250436,-749.28,0.00035616,12]
[359546297,1746100250447,-513.57,0.00035616,12]
[359546298,1746100250457,-400.0,0.00035616,12]
[359546299,1746100250468,-400.0,0.00035616,12]
[359546300,1746100250478,-568.24,0.00035616,12]
[359546301,1746100250491,-172.94995933,0.00035616,12]
[359546302,1746100250504,-400.0,0.00035616,12]
[359546303,1746100250514,-400.0,0.00035616,12]
[359546304,1746100250524,-5623.86,0.00035616,12]
[359546305,1746100250534,-400.0,0.00035616,12]
[359546306,1746100250544,-400.0,0.00035616,12]
[359546307,1746100250554,-400.0,0.00035616,12]
[359546308,1746100250565,-400.0,0.00035616,12]
[359546309,1746100250574,-400.0,0.00035616,12]
[359546310,1746100250585,-2146.19,0.00035616,12]
[359546311,1746100250595,-203.65779006,0.00035616,12]
[359546312,1746100250605,-940.4,0.00035616,12]
[359546313,1746100250615,-190.38101066,0.00035616,12]
[359546314,1746100250625,-502.45964425,0.00035616,12]
[359546315,1746100250635,-210.02382031,0.00035616,12]
[359546316,1746100250645,-602.93,0.00035616,12]
[359546317,1746100250655,-400.0,0.00035616,12]
[359546318,1746100250665,-677.21,0.00035616,12]
[359546319,1746100250674,-400.0,0.00035616,12]
[359546320,1746100250685,-1619.11,0.00035616,12]
[359546321,1746100250694,-400.0,0.00035616,12]
[359546322,1746100250704,-400.0,0.00035616,12]
[359546323,1746100250714,-400.0,0.00035616,12]
[359546324,1746100250724,-400.0,0.00035616,12]
[359546325,1746100250733,-400.0,0.00035616,12]
[359546326,1746100250743,-400.0,0.00035616,12]
[359546327,1746100250754,-773.58,0.00035616,12]
[359546328,1746100250764,-2868.97,0.00035616,12]
[359546329,1746100250774,-598.66,0.00035616,12]
[359546330,1746100250784,-6019.88,0.00035616,12]
[359546331,1746100250794,-400.0,0.00035616,12]
[359546332,1746100250804,-400.0,0.00035616,12]
[359546333,1746100250814,-1741.86,0.00035616,12]
[359546334,1746100250824,-400.0,0.00035616,12]
[359546335,1746100250835,-215.54290479,0.00035616,12]
[359546336,1746100250845,-400.0,0.00035616,12]
[359546337,1746100250855,-731.38,0.00035616,12]
[359546338,1746100250866,-619.44,0.00035616,12]
[359546339,1746100250876,-400.0,0.00035616,12]
[359546340,1746100250886,-400.0,0.00035616,12]
[359546341,1746100250896,-400.0,0.00035616,12]
[359546342,1746100250907,-455.24,0.00035616,12]
[359546343,1746100250916,-1308.81,0.00035616,12]
[359546344,1746100250925,-507.17935352,0.00035616,12]
[359546345,1746100250933,-400.0,0.00035616,12]
[359546346,1746100250942,-1047.96,0.00035616,12]
[359546347,1746100250951,-698.28,0.00035616,12]
[359546348,1746100250960,-400.0,0.00035616,12]
[359546349,1746100250970,-400.0,0.00035616,12]
[359546350,1746100250980,-400.0,0.00035616,12]
[359546351,1746100250989,-200.0,0.00035616,12]
[359546352,1746100250999,-400.0,0.00035616,12]
[359546353,1746100251009,-400.0,0.00035616,12]
[359546354,1746100251019,-400.0,0.00035616,12]
[359546355,1746100251029,-400.0,0.00035616,12]
[359546356,1746100251038,-400.0,0.00035616,12]
[359546357,1746100251048,-4066.11,0.00035616,12]
[359546358,1746100251058,-400.0,0.00035616,12]
[359546359,1746100251068,-501.89,0.00035616,12]
[359546360,1746100251078,-513.46129227,0.00035616,12]
[359546361,1746100251088,-400.0,0.00035616,12]
[359546362,1746100251099,-400.0,0.00035616,12]
[359546363,1746100251108,-1747.22,0.00035616,12]
[359546364,1746100251119,-505.33,0.00035616,12]
[359546365,1746100251129,-325.78522718,0.00035616,12]
[359546366,1746100251140,-400.0,0.00035616,12]
[359546367,1746100251150,-500.0,0.00035616,12]
[359546368,1746100251160,-400.0,0.00035616,12]
[359546369,1746100251170,-568.61,0.00035616,12]
[359546370,1746100251180,-1458.76,0.00035616,12]
[359546371,1746100251190,-400.0,0.00035616,12]
[359546372,1746100251200,-400.0,0.00035616,12]
[359546373,1746100251210,-400.0,0.00035616,12]
[359546374,1746100251220,-672.1,0.00035616,12]
[359546375,1746100251229,-400.0,0.00035616,12]
[359546376,1746100251239,-400.0,0.00035616,12]
[359546377,1746100251249,-400.0,0.00035616,12]
[359546378,1746100251259,-400.0,0.00035616,12]
[359546379,1746100251268,-713.57,0.00035616,12]
[359546380,1746100251278,-400.0,0.00035616,12]
[359546381,1746100251288,-400.0,0.00035616,12]
[359546382,1746100251298,-966.14,0.00035616,12]
[359546383,1746100251307,-400.0,0.00035616,12]
[359546384,1746100251317,-400.0,0.00035616,12]
[359546385,1746100251327,-400.0,0.00035616,12]
[359546386,1746100251338,-400.0,0.00035616,12]
[359546387,1746100251348,-400.0,0.00035616,12]
[359546388,1746100251358,-400.0,0.00035616,12]
[359546389,1746100251368,-494.99,0.00035616,12]
[359546390,1746100251378,-400.0,0.00035616,12]
[359546391,1746100251387,-559.17,0.00035616,12]
[359546392,1746100251397,-609.29,0.00035616,12]
[359546393,1746100251407,-400.0,0.00035616,12]
[359546394,1746100251417,-400.0,0.00035616,12]
[359546395,1746100251427,-2359.79,0.00035616,12]
[359546396,1746100251437,-400.0,0.00035616,12]
[359546397,1746100251448,-400.0,0.00035616,12]
[359546398,1746100251458,-756.14,0.00035616,12]
[359546399,1746100251467,-608.92,0.00035616,12]
[359546400,1746100251476,-309.8164445,0.00035616,12]
[359546401,1746100251486,-400.0,0.00035616,12]
[359546402,1746100251500,-554.65,0.00035616,12]
[359546403,1746100251509,-1130.17,0.00035616,12]
[359546404,1746100251519,-400.0,0.00035616,12]
[359546405,1746100251529,-400.0,0.00035616,12]
[359546406,1746100251540,-529.34,0.00035616,12]
[359546407,1746100251550,-1386.04,0.00035616,12]
[359546408,1746100251560,-453.83,0.00035616,12]
[359546409,1746100251570,-324.75170204,0.00035616,12]
[359546410,1746100251580,-400.0,0.00035616,12]
[359546411,1746100251589,-500.0,0.00035616,12]
[359546412,1746100251600,-450.59,0.00035616,12]
[359546413,1746100251610,-400.0,0.00035616,12]
[359546414,1746100251621,-991.01,0.00035616,12]
[359546415,1746100251631,-300.0,0.00035616,12]
[359546416,1746100251640,-653.04,0.00035616,12]
[359546417,1746100251650,-1491.4,0.00035616,12]
[359546418,1746100251659,-1229.11,0.00035616,12]
[359546419,1746100251670,-492.42,0.00035616,12]
[359546420,1746100251680,-400.0,0.00035616,12]
[359546421,1746100251689,-400.0,0.00035616,12]
[359546422,1746100251699,-400.0,0.00035616,12]
[359546423,1746100251708,-400.0,0.00035616,12]
[359546424,1746100251718,-618.74,0.00035616,12]
[359546425,1746100251728,-580.05,0.00035616,12]
[359546426,1746100251738,-400.0,0.00035616,12]
[359546427,1746100251747,-400.0,0.00035616,12]
[359546428,1746100251757,-400.0,0.00035616,12]
[359546429,1746100251767,-400.0,0.00035616,12]
[359546430,1746100251777,-541.41,0.00035616,12]
[359546431,1746100251787,-400.0,0.00035616,12]
[359546432,1746100251797,-480.26,0.00035616,12]
[359546433,1746100251807,-400.0,0.00035616,12]
[359546434,1746100251817,-1131.18,0.00035616,12]
[359546435,1746100251826,-425.46186306,0.00035616,12]
[359546436,1746100251837,-400.0,0.00035616,12]
[359546437,1746100251846,-400.0,0.00035616,12]
[359546438,1746100251856,-4438.34,0.00035616,2]
[359546439,1746100251866,-400.0,0.00035616,12]
[359546440,1746100251876,-1022.42,0.00035616,12]
[359546441,1746100251886,-400.0,0.00035616,12]
[359546442,1746100251895,-400.0,0.00035616,12]
[359546443,1746100251905,-765.4180297,0.00035616,12]
[359546444,1746100371696,-249.36428256,0.00024489,2]
[359546445,1746100371716,-911.63571744,0.00024489,2]
[359546446,1746100504090,-250.0,0.00024389,2]
[359546447,1746100504113,-51.0,0.00024489,2]
[359546449,1746100569997,-300.0,0.00024389,2]
[359546450,1746100570018,-37.36428256,0.00024489,2]
[359546451,1746100570039,-160.0,0.00025709,2]
[359546452,1746100570061,-300.0,0.00025715,2]
[359546453,1746100570081,-300.0,0.00025716,2]
[359546454,1746100570102,-300.0,0.00025716,2]
[359546455,1746100570123,-1200.0,0.00025716,2]
[359546456,1746100570144,-300.0,0.00025716,2]
[359546457,1746100570164,-160.0,0.00025717,2]
[359546458,1746100570185,-160.0,0.00025717,2]
[359546459,1746100570283,-421.4777418,0.00025717,2]
[359546460,1746100570303,-841.10298755,0.00025717,2]
[359546461,1746100570324,-12595.7684382,0.00025717,2]
[359546462,1746100570343,-182.07995741,0.00025717,2]
[359546463,1746100570364,-160.0,0.00025717,2]
[359546464,1746100570384,-10651.0,0.00025717,2]
[359546465,1746100570407,-200.01715272,0.000269,16]
[359546466,1746100570426,-313.5174939,0.00027,3]
[359546467,1746100570446,-313.5174939,0.00027,3]
[359546468,1746100570465,-160.0,0.00027,3]
[359546469,1746100570485,-160.0,0.00027,3]
[359546470,1746100570509,-313.5174939,0.00027282,2]
[359546471,1746100570530,-161.0,0.00027397,3]
[359546472,1746100570555,-200.01715262,0.00027775,17]
[359546473,1746100570585,-200.01715262,0.0002865,19]
[359546474,1746100570617,-200.01715262,0.00029525,21]
[359546476,1746100633475,182.07995741,0.00026195,2]
[359546477,1746100633566,2294.50554279,0.00026195,2]
[359546483,1746100796638,150.0,6.8e-07,2]
[359546484,1746100796745,150.0,6.8e-07,2]
[359546504,1746101436143,-250.0,0.00026095,2]
[359546506,1746101436154,-841.10298755,0.00026195,2]
[359546508,1746101436165,-690.2138713,0.00026821,2]
[359546510,1746101436176,-160.0,0.00026898,2]
[359546512,1746101436186,-205.4156093,0.000269,16]
[359546514,1746101436197,-191.37972229,0.000269,2]
[359546516,1746101436208,-300.0,0.00026984,2]
[359546518,1746101436219,-5537.4689309,0.00026985,2]
[359546520,1746101436230,-313.5174939,0.00027,3]
[359546523,1746101436240,-313.5174939,0.00027,3]
[359546525,1746101436250,-160.0,0.00027,3]
[359546527,1746101436260,-160.0,0.00027,3]
[359546529,1746101436270,-465.68196406,0.00027227,2]
[359546531,1746101436281,-1015.956277,0.00027397,2]
[359546533,1746101436291,-166.0,0.00027397,3]
[359546535,1746101436301,-205.41560919,0.000279,18]
[359546537,1746101436311,-205.41560919,0.000289,20]
[359546539,1746101436322,-420.0,0.00029173,2]
[359546541,1746101436332,-1708.38183737,0.00029185,2]
[359546544,1746101436345,-119.38938455,0.00029185,2]
[359546546,1746101436356,-160.0,0.00029269,2]
[359546548,1746101436366,-500.0,0.00029281,2]
[359546550,1746101436376,-300.53703792,0.00029281,2]
[359546552,1746101436386,-500.0,0.00029281,2]
[359546554,1746101436396,-500.0,0.00029281,2]
[359546556,1746101436406,-500.0,0.00029281,2]
[359546558,1746101436416,-500.0,0.00029281,2]
[359546560,1746101436426,-500.0,0.00029281,2]
[359546562,1746101436436,-400.0,0.00029281,2]
[359546564,1746101436446,-500.0,0.00029281,2]
[359546566,1746101436457,-500.0,0.00029281,2]
[359546568,1746101436467,-500.0,0.00029281,2]
[359546570,1746101436476,-500.0,0.00029281,2]
[359546572,1746101436487,-500.0,0.00029281,2]
[359546575,1746101436496,-500.0,0.00029281,2]
[359546577,1746101436506,-500.0,0.00029281,2]
[359546579,1746101436516,-500.0,0.00029281,2]
[359546581,1746101436526,-500.0,0.00029281,2]
[359546583,1746101436536,-500.0,0.00029281,2]
[359546585,1746101436546,-500.0,0.00029281,2]
[359546587,1746101436557,-500.0,0.00029281,2]
[359546589,1746101436566,-500.0,0.00029281,2]
[359546590,1746101436576,-500.0,0.00029281,2]
[359546591,1746101436586,-160.64272904,0.00029286,2]
[359546592,1746101436596,-500.0,0.00029286,2]